[Event "January 9 Early 2024"]
[Site "https://www.chess.com"]
[Date "2024.01.11"]
[Round "9"]
[White "Golubev, Mikhail"]
[Black "Ovezdurdyyeva, Jemal"]
[Result "1/2-1/2"]
[Board "112"]
[TimeControl "180+1"]
[WhiteFideId "14100983"]
[BlackFideId "14001888"]
[WhiteElo "2618"]
[BlackElo "2468"]
[WhiteTeam "UKR"]
[BlackTeam "TKM"]
[WhiteClock "0:00:10"]
[BlackClock "0:00:35"]

1. e4 {[%clk 0:03:00]}  d6 {[%clk 0:02:59]} 2. f4 {[%clk 0:02:58]}  Nf6 {[%clk 0:02:58]} 3. Nc3 {[%clk 0:02:57]}  c6 {[%clk 0:02:58]} 4. d4 {[%clk 0:02:55]}  b5 {[%clk 0:02:58]} 5. e5 {[%clk 0:02:49]}  dxe5 {[%clk 0:02:56]} 6. fxe5 {[%clk 0:02:48]}  Nd5 {[%clk 0:02:57]} 7. Nf3 {[%clk 0:02:34]}  g6 {[%clk 0:02:56]} 8. a4 {[%clk 0:02:25]}  b4 {[%clk 0:02:54]} 9. Ne4 {[%clk 0:02:16]}  Bg7 {[%clk 0:02:53]} 10. Bc4 {[%clk 0:02:10]}  O-O {[%clk 0:02:52]} 11. O-O {[%clk 0:02:10]}  f6 {[%clk 0:02:51]} 12. Nc5 {[%clk 0:02:00]}  Qb6 {[%clk 0:02:33]} 13. exf6 {[%clk 0:01:28]}  exf6 {[%clk 0:02:20]} 14. Bf4 {[%clk 0:01:27]}  a5 {[%clk 0:02:15]} 15. Qd2 {[%clk 0:01:20]}  Na6 {[%clk 0:02:12]} 16. Bxa6 {[%clk 0:00:57]}  Bxa6 {[%clk 0:02:07]} 17. Rfe1 {[%clk 0:00:45]}  Nxf4 {[%clk 0:02:07]} 18. Qxf4 {[%clk 0:00:44]}  Bc4 {[%clk 0:02:07]} 19. Re7 {[%clk 0:00:38]}  Rae8 {[%clk 0:01:51]} 20. Rae1 {[%clk 0:00:33]}  Qd8 {[%clk 0:01:49]} 21. Rxe8 {[%clk 0:00:24]}  Rxe8 {[%clk 0:01:48]} 22. Rxe8+ {[%clk 0:00:22]}  Qxe8 {[%clk 0:01:48]} 23. b3 {[%clk 0:00:21]}  Bd5 {[%clk 0:01:45]} 24. Kf2 {[%clk 0:00:20]}  h5 {[%clk 0:01:36]} 25. Qe3 {[%clk 0:00:20]}  Qxe3+ {[%clk 0:01:31]} 26. Kxe3 {[%clk 0:00:21]}  Bh6+ {[%clk 0:01:30]} 27. Ke2 {[%clk 0:00:18]}  Bf4 {[%clk 0:01:30]} 28. g3 {[%clk 0:00:16]}  Bc7 {[%clk 0:01:29]} 29. Nd2 {[%clk 0:00:16]}  Bb6 {[%clk 0:01:26]} 30. Kd3 {[%clk 0:00:13]}  Kf7 {[%clk 0:01:20]} 31. Nd7 {[%clk 0:00:12]}  Ba7 {[%clk 0:01:19]} 32. Nc4 {[%clk 0:00:12]}  Ke7 {[%clk 0:01:12]} 33. Nc5 {[%clk 0:00:11]}  Bxc5 {[%clk 0:01:09]} 34. dxc5 {[%clk 0:00:12]}  Bxc4+ {[%clk 0:01:09]} 35. Kxc4 {[%clk 0:00:12]}  Kd7 {[%clk 0:00:44]} 36. c3 {[%clk 0:00:13]}  bxc3 {[%clk 0:00:42]} 37. Kxc3 {[%clk 0:00:13]}  Kc7 {[%clk 0:00:42]} 38. Kd4 {[%clk 0:00:10]}  Kd7 {[%clk 0:00:40]} 39. Kc4 {[%clk 0:00:10]}  Kc7 {[%clk 0:00:39]} 40. Kd4 {[%clk 0:00:10]}  Kd7 {[%clk 0:00:39]} 41. Kc4 {[%clk 0:00:10]}  Kc7 {[%clk 0:00:35]} 42. Kd4 {[%clk 0:00:10]} 1/2-1/2

[Event "January 9 Early 2024"]
[Site "https://www.chess.com"]
[Date "2024.01.11"]
[Round "9"]
[White "Morales Garcia, Sergio Joshafatt"]
[Black "Janaszak, Dawid"]
[Result "0-1"]
[Board "116"]
[TimeControl "180+1"]
[WhiteFideId "5106249"]
[BlackFideId "1119206"]
[WhiteElo "2456"]
[BlackElo "2621"]
[WhiteTeam "MEX"]
[BlackTeam "POL"]
[WhiteClock "0:00:11"]
[BlackClock "0:00:30"]

1. d4 {[%clk 0:03:00]}  d5 {[%clk 0:02:59]} 2. c4 {[%clk 0:03:01]}  e6 {[%clk 0:03:00]} 3. Nf3 {[%clk 0:03:01]}  c5 {[%clk 0:02:59]} 4. e3 {[%clk 0:03:00]}  Nf6 {[%clk 0:02:59]} 5. Nc3 {[%clk 0:02:59]}  Nc6 {[%clk 0:02:59]} 6. cxd5 {[%clk 0:02:59]}  exd5 {[%clk 0:03:00]} 7. Bb5 {[%clk 0:02:59]}  Bd6 {[%clk 0:02:59]} 8. dxc5 {[%clk 0:02:54]}  Bxc5 {[%clk 0:02:59]} 9. h3 {[%clk 0:02:53]}  O-O {[%clk 0:02:59]} 10. O-O {[%clk 0:02:53]}  Bf5 {[%clk 0:02:47]} 11. b3 {[%clk 0:02:52]}  Qe7 {[%clk 0:02:44]} 12. Bb2 {[%clk 0:02:40]}  Rad8 {[%clk 0:02:42]} 13. Bxc6 {[%clk 0:02:37]}  bxc6 {[%clk 0:02:42]} 14. Nd4 {[%clk 0:02:38]}  Bd7 {[%clk 0:02:39]} 15. Qc2 {[%clk 0:02:30]}  Bd6 {[%clk 0:02:38]} 16. Nf5 {[%clk 0:02:27]}  Bxf5 {[%clk 0:02:31]} 17. Qxf5 {[%clk 0:02:28]}  g6 {[%clk 0:02:17]} 18. Qf3 {[%clk 0:02:13]}  Be5 {[%clk 0:02:16]} 19. Rac1 {[%clk 0:01:56]}  Ne4 {[%clk 0:02:15]} 20. Rc2 {[%clk 0:01:50]}  f5 {[%clk 0:02:13]} 21. Ne2 {[%clk 0:01:41]}  Ng5 {[%clk 0:02:10]} 22. Qf4 {[%clk 0:01:19]}  Bxf4 {[%clk 0:02:07]} 23. Nxf4 {[%clk 0:01:20]}  Rc8 {[%clk 0:02:00]} 24. Rfc1 {[%clk 0:01:19]}  Qd6 {[%clk 0:01:56]} 25. Rc5 {[%clk 0:01:18]}  Ne6 {[%clk 0:01:54]} 26. Ra5 {[%clk 0:01:16]}  Nxf4 {[%clk 0:01:53]} 27. exf4 {[%clk 0:01:16]}  Qd7 {[%clk 0:01:49]} 28. Bd4 {[%clk 0:01:10]}  Rc7 {[%clk 0:01:46]} 29. Be5 {[%clk 0:01:08]}  Rb7 {[%clk 0:01:44]} 30. Rac5 {[%clk 0:01:02]}  Rc8 {[%clk 0:01:44]} 31. g3 {[%clk 0:00:57]}  Rb5 {[%clk 0:01:44]} 32. R5c2 {[%clk 0:00:54]}  c5 {[%clk 0:01:45]} 33. Re2 {[%clk 0:00:40]}  d4 {[%clk 0:01:42]} 34. Rce1 {[%clk 0:00:37]}  Re8 {[%clk 0:01:41]} 35. h4 {[%clk 0:00:35]}  d3 {[%clk 0:01:36]} 36. Rd2 {[%clk 0:00:34]}  c4 {[%clk 0:01:29]} 37. bxc4 {[%clk 0:00:32]}  Rc5 {[%clk 0:01:26]} 38. Re3 {[%clk 0:00:31]}  Rxc4 {[%clk 0:01:26]} 39. Rexd3 {[%clk 0:00:27]}  Rc1+ {[%clk 0:01:26]} 40. Kh2 {[%clk 0:00:28]}  Qc6 {[%clk 0:01:26]} 41. f3 {[%clk 0:00:28]}  Rc2 {[%clk 0:01:26]} 42. h5 {[%clk 0:00:20]}  gxh5 {[%clk 0:01:22]} 43. Rd7 {[%clk 0:00:13]}  Rxd2+ {[%clk 0:01:20]} 44. Rxd2 {[%clk 0:00:12]}  Qxf3 {[%clk 0:01:11]} 45. Rd7 {[%clk 0:00:12]}  Rc8 {[%clk 0:01:08]} 46. Rg7+ {[%clk 0:00:11]}  Kf8 {[%clk 0:01:08]} 47. Rxh7 {[%clk 0:00:11]}  Rc2+ {[%clk 0:01:08]} 48. Kh3 {[%clk 0:00:11]}  Qh1# {[%clk 0:00:30]} 0-1

[Event "January 9 Early 2024"]
[Site "https://www.chess.com"]
[Date "2024.01.11"]
[Round "9"]
[White "Khamdamova, Afruza"]
[Black "Cruz, William Ferreira Da"]
[Result "0-1"]
[Board "119"]
[TimeControl "180+1"]
[WhiteFideId "14210444"]
[BlackFideId "2118050"]
[WhiteElo "2510"]
[BlackElo "2355"]
[WhiteTeam "UZB"]
[BlackTeam "BRA"]
[WhiteClock "0:00:04"]
[BlackClock "0:00:45"]

1. e4 {[%clk 0:02:59]}  e6 {[%clk 0:02:59]} 2. d4 {[%clk 0:02:58]}  d5 {[%clk 0:02:59]} 3. Nd2 {[%clk 0:02:59]}  c5 {[%clk 0:02:57]} 4. exd5 {[%clk 0:02:59]}  Qxd5 {[%clk 0:02:57]} 5. Ngf3 {[%clk 0:02:59]}  cxd4 {[%clk 0:02:57]} 6. Bc4 {[%clk 0:03:00]}  Qd8 {[%clk 0:02:57]} 7. O-O {[%clk 0:03:00]}  a6 {[%clk 0:02:56]} 8. a4 {[%clk 0:02:54]}  Nc6 {[%clk 0:02:54]} 9. Nb3 {[%clk 0:02:53]}  Qc7 {[%clk 0:02:50]} 10. Qe2 {[%clk 0:02:50]}  Bd6 {[%clk 0:02:46]} 11. Rd1 {[%clk 0:02:45]}  Nge7 {[%clk 0:02:36]} 12. Nbxd4 {[%clk 0:02:42]}  Bd7 {[%clk 0:02:26]} 13. Be3 {[%clk 0:02:30]}  O-O {[%clk 0:02:10]} 14. c3 {[%clk 0:02:24]}  e5 {[%clk 0:02:08]} 15. Nxc6 {[%clk 0:02:21]}  Bxc6 {[%clk 0:02:08]} 16. Bb3 {[%clk 0:02:18]}  Nf5 {[%clk 0:02:01]} 17. a5 {[%clk 0:01:58]}  Nxe3 {[%clk 0:02:00]} 18. Qxe3 {[%clk 0:01:55]}  e4 {[%clk 0:02:00]} 19. Nd4 {[%clk 0:01:39]}  Bxh2+ {[%clk 0:02:00]} 20. Kh1 {[%clk 0:01:39]}  Bf4 {[%clk 0:01:58]} 21. Qe2 {[%clk 0:01:36]}  Qd6 {[%clk 0:01:45]} 22. Kg1 {[%clk 0:01:19]}  Qh6 {[%clk 0:01:43]} 23. g3 {[%clk 0:01:11]}  e3 {[%clk 0:01:39]} 24. Nxc6 {[%clk 0:01:10]}  exf2+ {[%clk 0:01:37]} 25. Kg2 {[%clk 0:00:52]}  Qxc6+ {[%clk 0:01:28]} 26. Bd5 {[%clk 0:00:52]}  Qg6 {[%clk 0:01:26]} 27. Qxf2 {[%clk 0:00:50]}  Bd6 {[%clk 0:01:21]} 28. Bxb7 {[%clk 0:00:30]}  Rab8 {[%clk 0:01:21]} 29. Bd5 {[%clk 0:00:27]}  h5 {[%clk 0:01:09]} 30. Rd4 {[%clk 0:00:12]}  Bc5 {[%clk 0:01:05]} 31. b4 {[%clk 0:00:09]}  Bxd4 {[%clk 0:01:05]} 32. Qxd4 {[%clk 0:00:09]}  Rbe8 {[%clk 0:01:02]} 33. Bf3 {[%clk 0:00:07]}  Rd8 {[%clk 0:01:01]} 34. Qf2 {[%clk 0:00:07]}  Qg5 {[%clk 0:01:00]} 35. Re1 {[%clk 0:00:04]}  Rd2 {[%clk 0:00:59]} 36. Re2 {[%clk 0:00:05]}  Rfd8 {[%clk 0:00:59]} 37. Kh3 {[%clk 0:00:03]}  Qf5+ {[%clk 0:00:57]} 38. Kg2 {[%clk 0:00:03]}  Qg5 {[%clk 0:00:54]} 39. Kh3 {[%clk 0:00:02]}  Rxe2 {[%clk 0:00:53]} 40. Bxe2 {[%clk 0:00:03]}  Rd2 {[%clk 0:00:47]} 41. Kg2 {[%clk 0:00:04]}  Qd5+ {[%clk 0:00:46]} 42. Kf1 {[%clk 0:00:04]}  Qh1+ {[%clk 0:00:45]} 0-1

[Event "January 9 Early 2024"]
[Site "https://www.chess.com"]
[Date "2024.01.11"]
[Round "9"]
[White "Herman, Daniel"]
[Black "Sarkar, Justin"]
[Result "1-0"]
[Board "121"]
[TimeControl "180+1"]
[WhiteFideId "30935008"]
[BlackFideId "2010011"]
[WhiteElo "2433"]
[BlackElo "2294"]
[WhiteTeam "USA"]
[BlackTeam "USA"]
[WhiteClock "0:00:13"]
[BlackClock "0:00:03"]

1. Nf3 {[%clk 0:03:00]}  Nf6 {[%clk 0:02:56]} 2. d4 {[%clk 0:02:59]}  d6 {[%clk 0:02:50]} 3. g3 {[%clk 0:02:58]}  g6 {[%clk 0:02:40]} 4. Bg2 {[%clk 0:02:58]}  Bg7 {[%clk 0:02:40]} 5. O-O {[%clk 0:02:58]}  O-O {[%clk 0:02:39]} 6. c4 {[%clk 0:02:57]}  Nc6 {[%clk 0:02:20]} 7. Nc3 {[%clk 0:02:57]}  Bg4 {[%clk 0:02:18]} 8. h3 {[%clk 0:02:33]}  Bxf3 {[%clk 0:02:17]} 9. exf3 {[%clk 0:02:28]}  e5 {[%clk 0:02:14]} 10. dxe5 {[%clk 0:02:24]}  Nxe5 {[%clk 0:02:11]} 11. Qb3 {[%clk 0:02:15]}  Rb8 {[%clk 0:02:00]} 12. Be3 {[%clk 0:02:09]}  a6 {[%clk 0:01:53]} 13. Rad1 {[%clk 0:02:08]}  b5 {[%clk 0:01:50]} 14. c5 {[%clk 0:02:01]}  Nc4 {[%clk 0:01:45]} 15. cxd6 {[%clk 0:01:53]}  Nxe3 {[%clk 0:01:36]} 16. fxe3 {[%clk 0:01:52]}  cxd6 {[%clk 0:01:34]} 17. e4 {[%clk 0:01:48]}  Nh5 {[%clk 0:01:15]} 18. Ne2 {[%clk 0:01:31]}  Qf6 {[%clk 0:01:06]} 19. f4 {[%clk 0:01:05]}  Qxb2 {[%clk 0:00:58]} 20. Qxb2 {[%clk 0:01:04]}  Bxb2 {[%clk 0:00:59]} 21. Rxd6 {[%clk 0:00:59]}  a5 {[%clk 0:00:58]} 22. e5 {[%clk 0:00:53]}  b4 {[%clk 0:00:53]} 23. g4 {[%clk 0:00:41]}  Ng7 {[%clk 0:00:51]} 24. Rfd1 {[%clk 0:00:38]}  a4 {[%clk 0:00:49]} 25. Bd5 {[%clk 0:00:36]}  b3 {[%clk 0:00:44]} 26. axb3 {[%clk 0:00:34]}  a3 {[%clk 0:00:45]} 27. b4 {[%clk 0:00:31]}  Ne6 {[%clk 0:00:38]} 28. f5 {[%clk 0:00:15]}  gxf5 {[%clk 0:00:33]} 29. gxf5 {[%clk 0:00:15]}  Nd4 {[%clk 0:00:32]} 30. Nxd4 {[%clk 0:00:15]}  Bxd4+ {[%clk 0:00:32]} 31. Rxd4 {[%clk 0:00:15]}  Rb5 {[%clk 0:00:20]} 32. Ba2 {[%clk 0:00:14]}  Rxe5 {[%clk 0:00:20]} 33. Rg4+ {[%clk 0:00:15]}  Kh8 {[%clk 0:00:19]} 34. Rf6 {[%clk 0:00:15]}  Re2 {[%clk 0:00:14]} 35. Rg2 {[%clk 0:00:15]}  Rxg2+ {[%clk 0:00:12]} 36. Kxg2 {[%clk 0:00:16]}  Rd8 {[%clk 0:00:07]} 37. Kf3 {[%clk 0:00:14]}  Rd2 {[%clk 0:00:06]} 38. Bc4 {[%clk 0:00:13]}  Rc2 {[%clk 0:00:05]} 39. Bd5 {[%clk 0:00:13]}  Rd2 {[%clk 0:00:03]} 40. Ke4 {[%clk 0:00:13]} 1-0

[Event "January 9 Early 2024"]
[Site "https://www.chess.com"]
[Date "2024.01.11"]
[Round "9"]
[White "Delorme, Axel"]
[Black "Isajevsky, Anton"]
[Result "0-1"]
[Board "122"]
[TimeControl "180+1"]
[WhiteFideId "632023"]
[BlackFideId "4142500"]
[WhiteElo "2510"]
[BlackElo "2644"]
[WhiteTeam "FRA"]
[BlackTeam "RUS"]
[WhiteClock "0:00:03"]
[BlackClock "0:00:19"]

1. e4 {[%clk 0:03:00]}  c5 {[%clk 0:02:59]} 2. Nf3 {[%clk 0:03:01]}  d6 {[%clk 0:02:58]} 3. Bb5+ {[%clk 0:03:01]}  Nd7 {[%clk 0:02:58]} 4. O-O {[%clk 0:02:59]}  a6 {[%clk 0:02:57]} 5. Bxd7+ {[%clk 0:03:00]}  Bxd7 {[%clk 0:02:56]} 6. c3 {[%clk 0:03:00]}  Nf6 {[%clk 0:02:55]} 7. Re1 {[%clk 0:03:01]}  Bc6 {[%clk 0:02:55]} 8. d4 {[%clk 0:03:01]}  cxd4 {[%clk 0:02:47]} 9. cxd4 {[%clk 0:03:02]}  Bxe4 {[%clk 0:02:48]} 10. Nc3 {[%clk 0:02:59]}  d5 {[%clk 0:02:48]} 11. Bg5 {[%clk 0:02:58]}  e6 {[%clk 0:02:48]} 12. Nxe4 {[%clk 0:02:53]}  dxe4 {[%clk 0:02:48]} 13. Bxf6 {[%clk 0:02:37]}  gxf6 {[%clk 0:02:46]} 14. Rxe4 {[%clk 0:02:37]}  Qd5 {[%clk 0:02:46]} 15. Qc2 {[%clk 0:02:24]}  Bg7 {[%clk 0:02:19]} 16. Rg4 {[%clk 0:02:05]}  O-O {[%clk 0:02:16]} 17. Rh4 {[%clk 0:01:49]}  h6 {[%clk 0:02:07]} 18. Qe2 {[%clk 0:01:21]}  Rac8 {[%clk 0:01:53]} 19. h3 {[%clk 0:01:19]}  Rc4 {[%clk 0:01:34]} 20. b3 {[%clk 0:01:17]}  Rc3 {[%clk 0:01:28]} 21. Rd1 {[%clk 0:01:01]}  Rfc8 {[%clk 0:01:24]} 22. Qe4 {[%clk 0:00:35]}  Rd8 {[%clk 0:01:13]} 23. Qg4 {[%clk 0:00:31]}  Kf8 {[%clk 0:00:57]} 24. Qh5 {[%clk 0:00:19]}  Rc2 {[%clk 0:00:48]} 25. Qg4 {[%clk 0:00:16]}  Rxa2 {[%clk 0:00:40]} 26. Rh5 {[%clk 0:00:17]}  f5 {[%clk 0:00:40]} 27. Qh4 {[%clk 0:00:15]}  Rc8 {[%clk 0:00:30]} 28. Kh2 {[%clk 0:00:04]}  Qe4 {[%clk 0:00:25]} 29. Rxh6 {[%clk 0:00:03]}  Qxh4 {[%clk 0:00:24]} 30. Rxh4 {[%clk 0:00:03]}  Rxf2 {[%clk 0:00:25]} 31. Rf4 {[%clk 0:00:01]}  Rcc2 {[%clk 0:00:24]} 32. Kg3 {[%clk 0:00:01]}  Rxg2+ {[%clk 0:00:24]} 33. Kh4 {[%clk 0:00:02]}  Bf6+ {[%clk 0:00:22]} 34. Kh5 {[%clk 0:00:03]}  Ke7 {[%clk 0:00:20]} 35. h4 {[%clk 0:00:03]}  Rc8 {[%clk 0:00:19]} 36. Ng5 {[%clk 0:00:03]}  Rh8+ {[%clk 0:00:19]} 0-1

[Event "January 9 Early 2024"]
[Site "https://www.chess.com"]
[Date "2024.01.11"]
[Round "9"]
[White "Derjabin, Ilja"]
[Black "Lima, Artur Tin Lun Dai"]
[Result "1-0"]
[Board "124"]
[TimeControl "180+1"]
[WhiteFideId "14104768"]
[BlackFideId "22773150"]
[WhiteElo "2517"]
[BlackElo "2361"]
[WhiteTeam "UKR"]
[BlackTeam "BRA"]
[WhiteClock "0:00:11"]
[BlackClock "0:00:01"]

1. d4 {[%clk 0:03:00]}  g6 {[%clk 0:02:58]} 2. c4 {[%clk 0:03:01]}  Bg7 {[%clk 0:02:59]} 3. e4 {[%clk 0:03:01]}  c5 {[%clk 0:02:57]} 4. d5 {[%clk 0:03:01]}  d6 {[%clk 0:02:55]} 5. Nc3 {[%clk 0:03:00]}  e6 {[%clk 0:02:50]} 6. Nge2 {[%clk 0:02:59]}  Ne7 {[%clk 0:02:50]} 7. Ng3 {[%clk 0:02:59]}  O-O {[%clk 0:02:51]} 8. Be2 {[%clk 0:02:59]}  a6 {[%clk 0:02:47]} 9. a4 {[%clk 0:02:58]}  h5 {[%clk 0:02:37]} 10. Bxh5 {[%clk 0:02:52]}  gxh5 {[%clk 0:02:33]} 11. Nxh5 {[%clk 0:02:51]}  exd5 {[%clk 0:02:28]} 12. Nxg7 {[%clk 0:02:51]}  Kxg7 {[%clk 0:02:27]} 13. cxd5 {[%clk 0:02:52]}  Ng6 {[%clk 0:02:27]} 14. O-O {[%clk 0:02:48]}  Qf6 {[%clk 0:02:23]} 15. Ra3 {[%clk 0:02:42]}  Rh8 {[%clk 0:02:22]} 16. Ne2 {[%clk 0:02:37]}  Qh4 {[%clk 0:02:13]} 17. h3 {[%clk 0:02:35]}  Qxe4 {[%clk 0:02:08]} 18. b4 {[%clk 0:02:27]}  Nd7 {[%clk 0:01:49]} 19. Bb2+ {[%clk 0:02:25]}  f6 {[%clk 0:01:50]} 20. Rg3 {[%clk 0:02:22]}  Kf7 {[%clk 0:01:48]} 21. Re1 {[%clk 0:02:14]}  Qxb4 {[%clk 0:01:44]} 22. Bc3 {[%clk 0:02:05]}  Qc4 {[%clk 0:01:44]} 23. Rg4 {[%clk 0:01:49]}  Qa2 {[%clk 0:01:37]} 24. Rxg6 {[%clk 0:01:43]}  Kxg6 {[%clk 0:01:29]} 25. Nf4+ {[%clk 0:01:42]}  Kf7 {[%clk 0:01:27]} 26. Qd3 {[%clk 0:01:38]}  Rh6 {[%clk 0:01:02]} 27. Qe3 {[%clk 0:00:52]}  Ne5 {[%clk 0:00:58]} 28. Ne6 {[%clk 0:00:52]}  Rg6 {[%clk 0:00:31]} 29. Nc7 {[%clk 0:00:47]}  Bxh3 {[%clk 0:00:23]} 30. Bxe5 {[%clk 0:00:40]}  Rxg2+ {[%clk 0:00:18]} 31. Kh1 {[%clk 0:00:39]}  Rh8 {[%clk 0:00:13]} 32. Bxf6 {[%clk 0:00:39]}  Kxf6 {[%clk 0:00:04]} 33. Qc3+ {[%clk 0:00:12]}  Kg6 {[%clk 0:00:02]} 34. Qxh8 {[%clk 0:00:13]}  Qxf2 {[%clk 0:00:01]} 35. Qxh3 {[%clk 0:00:11]} 1-0

[Event "January 9 Early 2024"]
[Site "https://www.chess.com"]
[Date "2024.01.11"]
[Round "9"]
[White "Petersson, Kjell"]
[Black "Petrukhina, Olga"]
[Result "1-0"]
[Board "126"]
[TimeControl "180+1"]
[WhiteFideId "1705148"]
[BlackFideId "13703935"]
[WhiteElo "2144"]
[BlackElo "2274"]
[WhiteTeam "SWE"]
[BlackTeam "KAZ"]
[WhiteClock "0:00:19"]
[BlackClock "0:00:02"]

1. d4 {[%clk 0:03:00]}  e6 {[%clk 0:02:59]} 2. Bf4 {[%clk 0:03:01]}  Nf6 {[%clk 0:02:46]} 3. e3 {[%clk 0:03:01]}  c5 {[%clk 0:02:37]} 4. c3 {[%clk 0:02:59]}  cxd4 {[%clk 0:02:35]} 5. exd4 {[%clk 0:02:59]}  d6 {[%clk 0:02:33]} 6. Nf3 {[%clk 0:02:58]}  b6 {[%clk 0:02:32]} 7. Nbd2 {[%clk 0:02:54]}  Bb7 {[%clk 0:02:32]} 8. Bd3 {[%clk 0:02:52]}  Be7 {[%clk 0:02:31]} 9. O-O {[%clk 0:02:52]}  O-O {[%clk 0:02:31]} 10. Qc2 {[%clk 0:02:48]}  Nbd7 {[%clk 0:02:22]} 11. Rfe1 {[%clk 0:02:46]}  Re8 {[%clk 0:02:21]} 12. Ne4 {[%clk 0:02:27]}  Nxe4 {[%clk 0:02:17]} 13. Bxe4 {[%clk 0:02:28]}  Bxe4 {[%clk 0:02:17]} 14. Qxe4 {[%clk 0:02:25]}  Nf6 {[%clk 0:02:17]} 15. Qd3 {[%clk 0:02:24]}  Qc7 {[%clk 0:02:10]} 16. a4 {[%clk 0:02:22]}  a6 {[%clk 0:02:01]} 17. h3 {[%clk 0:02:14]}  Qb7 {[%clk 0:01:58]} 18. Bg5 {[%clk 0:01:41]}  h6 {[%clk 0:01:47]} 19. Bh4 {[%clk 0:01:40]}  b5 {[%clk 0:01:43]} 20. axb5 {[%clk 0:01:33]}  axb5 {[%clk 0:01:44]} 21. Nd2 {[%clk 0:01:19]}  d5 {[%clk 0:01:30]} 22. Nb3 {[%clk 0:01:13]}  Qc6 {[%clk 0:01:18]} 23. Bxf6 {[%clk 0:01:11]}  Bxf6 {[%clk 0:00:43]} 24. Nc5 {[%clk 0:01:11]}  e5 {[%clk 0:00:29]} 25. dxe5 {[%clk 0:01:10]}  Bxe5 {[%clk 0:00:27]} 26. Nb3 {[%clk 0:01:08]}  Qc4 {[%clk 0:00:20]} 27. Qc2 {[%clk 0:00:58]}  d4 {[%clk 0:00:17]} 28. Rxa8 {[%clk 0:00:55]}  Rxa8 {[%clk 0:00:15]} 29. Rxe5 {[%clk 0:00:56]}  dxc3 {[%clk 0:00:11]} 30. Qxc3 {[%clk 0:00:54]}  Qf4 {[%clk 0:00:11]} 31. Qe3 {[%clk 0:00:47]}  Qc4 {[%clk 0:00:06]} 32. Nd2 {[%clk 0:00:40]}  Qc1+ {[%clk 0:00:03]} 33. Kh2 {[%clk 0:00:40]}  Kh7 {[%clk 0:00:02]} 34. Qd3+ {[%clk 0:00:38]}  g6 {[%clk 0:00:02]} 35. Re7 {[%clk 0:00:37]}  Rf8 {[%clk 0:00:01]} 36. Nf3 {[%clk 0:00:33]}  Qc8 {[%clk 0:00:01]} 37. Qd7 {[%clk 0:00:30]}  Qb8+ {[%clk 0:00:01]} 38. g3 {[%clk 0:00:27]}  Kg7 {[%clk 0:00:02]} 39. Qd4+ {[%clk 0:00:26]}  Kg8 {[%clk 0:00:02]} 40. Qf4 {[%clk 0:00:23]}  Qc8 {[%clk 0:00:01]} 41. Qxh6 {[%clk 0:00:21]}  Qd8 {[%clk 0:00:02]} 42. Ng5 {[%clk 0:00:19]} 1-0

[Event "January 9 Early 2024"]
[Site "https://www.chess.com"]
[Date "2024.01.11"]
[Round "9"]
[White "Srihari L R"]
[Black "Kurmangaliyeva, Liya"]
[Result "1/2-1/2"]
[Board "130"]
[TimeControl "180+1"]
[WhiteFideId "46617116"]
[BlackFideId "13725831"]
[WhiteElo "2668"]
[BlackElo "2550"]
[WhiteTeam "IND"]
[BlackTeam "KAZ"]
[WhiteClock "0:00:28"]
[BlackClock "0:00:25"]

1. c4 {[%clk 0:03:00]}  e6 {[%clk 0:02:58]} 2. Nf3 {[%clk 0:03:00]}  d5 {[%clk 0:02:57]} 3. e3 {[%clk 0:03:00]}  Nf6 {[%clk 0:02:50]} 4. Nc3 {[%clk 0:02:59]}  Nbd7 {[%clk 0:02:46]} 5. b3 {[%clk 0:02:57]}  c6 {[%clk 0:02:42]} 6. Bb2 {[%clk 0:02:57]}  Bd6 {[%clk 0:02:41]} 7. d4 {[%clk 0:02:57]}  O-O {[%clk 0:02:40]} 8. Bd3 {[%clk 0:02:56]}  Qe7 {[%clk 0:02:37]} 9. O-O {[%clk 0:02:54]}  b6 {[%clk 0:02:35]} 10. e4 {[%clk 0:02:53]}  dxc4 {[%clk 0:02:27]} 11. bxc4 {[%clk 0:02:39]}  e5 {[%clk 0:02:27]} 12. Ne2 {[%clk 0:02:39]}  Bb7 {[%clk 0:02:13]} 13. Re1 {[%clk 0:02:38]}  Rfe8 {[%clk 0:02:13]} 14. h3 {[%clk 0:02:34]}  Bc7 {[%clk 0:02:01]} 15. Rc1 {[%clk 0:02:33]}  Rad8 {[%clk 0:02:00]} 16. Bb1 {[%clk 0:02:32]}  exd4 {[%clk 0:01:59]} 17. Nexd4 {[%clk 0:02:32]}  Ne5 {[%clk 0:01:57]} 18. Qc2 {[%clk 0:02:30]}  c5 {[%clk 0:01:53]} 19. Nf5 {[%clk 0:02:22]}  Nxf3+ {[%clk 0:01:51]} 20. gxf3 {[%clk 0:02:23]}  Qe6 {[%clk 0:01:50]} 21. Qc3 {[%clk 0:02:15]}  Be5 {[%clk 0:01:41]} 22. Qxe5 {[%clk 0:02:11]}  Qxe5 {[%clk 0:01:42]} 23. Bxe5 {[%clk 0:02:12]}  Rxe5 {[%clk 0:01:43]} 24. Red1 {[%clk 0:02:12]}  Rxd1+ {[%clk 0:01:20]} 25. Rxd1 {[%clk 0:02:12]}  g6 {[%clk 0:01:19]} 26. Nd6 {[%clk 0:02:05]}  Ba6 {[%clk 0:01:16]} 27. f4 {[%clk 0:02:02]}  Re6 {[%clk 0:01:15]} 28. e5 {[%clk 0:02:02]}  Ne8 {[%clk 0:01:15]} 29. Be4 {[%clk 0:01:54]}  Kf8 {[%clk 0:01:09]} 30. Bc6 {[%clk 0:01:45]}  Nc7 {[%clk 0:00:59]} 31. Bd5 {[%clk 0:01:44]}  Re7 {[%clk 0:00:57]} 32. Bxf7 {[%clk 0:01:44]}  b5 {[%clk 0:00:46]} 33. cxb5 {[%clk 0:01:38]}  Bxb5 {[%clk 0:00:46]} 34. Bb3 {[%clk 0:01:32]}  Bd7 {[%clk 0:00:46]} 35. Kg2 {[%clk 0:01:31]}  Be6 {[%clk 0:00:43]} 36. Kg3 {[%clk 0:01:29]}  Bxb3 {[%clk 0:00:40]} 37. axb3 {[%clk 0:01:30]}  Ne6 {[%clk 0:00:40]} 38. Rd5 {[%clk 0:01:24]}  Rc7 {[%clk 0:00:38]} 39. f5 {[%clk 0:01:23]}  gxf5 {[%clk 0:00:37]} 40. Nxf5 {[%clk 0:01:23]}  c4 {[%clk 0:00:34]} 41. bxc4 {[%clk 0:01:20]}  Rxc4 {[%clk 0:00:34]} 42. Rd7 {[%clk 0:01:16]}  Ng5 {[%clk 0:00:33]} 43. Rxa7 {[%clk 0:00:54]}  Rc3+ {[%clk 0:00:31]} 44. Kg4 {[%clk 0:00:52]}  Nxh3 {[%clk 0:00:28]} 45. f4 {[%clk 0:00:29]}  Nf2+ {[%clk 0:00:27]} 46. Kh4 {[%clk 0:00:28]}  Rh3+ {[%clk 0:00:25]} 47. Kg5 {[%clk 0:00:28]}  Ne4+ {[%clk 0:00:25]} 48. Kg4 {[%clk 0:00:29]}  Nf2+ {[%clk 0:00:24]} 49. Kg5 {[%clk 0:00:28]}  Ne4+ {[%clk 0:00:24]} 50. Kg4 {[%clk 0:00:28]}  Nf2+ {[%clk 0:00:25]} 51. Kg5 {[%clk 0:00:28]} 1/2-1/2